Workbook

Sheet Start
I2: Massiv-Holz-Mauer Entwicklungs GmbH
I3: Auf der Geigerhalde 41
I4: D-87459 Pfronten-Weißbach
I5: Tel.: ++49 (0) 8332 92 33 19
I6: Fax.: ++49 (0) 8332 92 33 11
I7: info@massivholzmauer.de
D11: Berechnungsblatt zum baustatischen Nachweis von MHM-Bauteilen,
D12: Wandscheibe unter vertikaler Beanspruchung mit Kopflast nach DIN EN 1995-1-1:2010-12
C15: Bei der Verwendung dieses Programmes erklären Sie sich mit den folgenden Bestimmungen einverstanden.
C16: Die Erstellung der Berechnungsformeln in diesem Programm erfolgte mit der größtmöglichen Sorgfalt. Das Programm wurde mehrfach auf richtige Berechnungsergebnisse überprüft. Wir weisen allerdings darauf hin, dass Fehler im Softwareprogramm nicht völlig ausgeschlossen werden können und durch die Verwendung von Programmierschutzfunktionen und Passwortfunktionen die im Programm vorhandenen Berechnungsformeln und Feldreferenzen gegen versehentliche Veränderung durch den Bearbeiter weitestgehend geschützt sind. Eine vorsätzliche Veränderung des Programms kann jedoch nicht ausgeschlossen werden. Das Programm kann die spezifischen Gegebenheiten des Einzelfalles nicht berücksichtigen. Es sind daher die üblichen ingenieurmäßigen Plausibilitätskontrollen durchzuführen. Bei der Verwendung der aufgeführten Informationen und Daten sowie der Ergebnisse dieses Programmes ist der Anwender und/oder der projektierende Ingenieur verantwortlich für die Prüfung und die Sicherstellung, dass die den aufgeführten Informationen, Daten und Ergebnissen zugrundegelegten Annahmen mit den am Einsatzort vorliegenden Gegebenheiten übereinstimmen. Das Programm ist als Hilfsmittel für den Anwender / projektierenden Ingenieur zu verstehen. Die Verantwortung für die Richtigkeit der ermittelten statischen Ergebnisse trägt ausschließlich der Anwender / projektierenden Ingenieur, der die statische Berechnung vornimmt. Weder die bauart Konstruktions GmbH & Co. KG als Ersteller des Moduls noch die MHM Entwicklungs GmbH als Inhaber des Moduls haften für Fehler, Mängel oder Schäden, die durch Fehler des Programms, durch Fehler bei der Anwendung des Programms, Fehler durch Veränderung am Programm enstehen, soweit diese nicht durch Vorsatz oder grobe Fahrlässigkeit der beiden vorgenannten Parteien oder ihrer Erfüllungsgehilfen verursacht wird.
C37: Version 3.1
C38: Stand März 2014

Sheet Eingabe
B2: Berechnungsblatt zum baustatischen Nachweis von MHM-Bauteilen
B4: Bauvorhaben: | K4: Position:
B5: Datum: | C5: =TODAY() -> 2014-04-30
B7: Angaben zum Bauteil
B8: Orientierung äußerer Brettlagen | D8: vertikal | J8: Anzahl der Brettlagen | K8: n = | L8: 13
B9: Bauteil-/Wandlänge | C9: l = | D9: 6000 | E9: mm | J9: Anzahl Brettlagen für die Nachweise | K9: n = | L9: =IF(D8="vertikal",L8,L8-2) -> 13
B10: Bauteilhöhe | C10: h = | D10: 4000 | E10: mm | J10: Einzelbrettdicke | K10: de = | L10: 23 | M10: mm
B11: Bauteildicke für die Nachweise | C11: d = | D11: =+L9*23 -> 299 | E11: mm | J11: Festigkeitsklasse | L11: C24 | N11: C16
B12: tatsächliche Bauteildicke | C12: d = | D12: =+L8*23 -> 299 | E12: mm | N12: C24
B14: Brettbreite bx (vertikale Brettlagen): | F14: 260 | G14: mm
B15: Brettbreite by (horizontale Brettlagen): | F15: 140 | G15: mm
B17: Angaben zu Einwirkungen (Eingabe der charakteristischen Lasten) | M17: =+'Berechnung Wand'!F41*10^3 -> 155.7651529
B18: Bauteilnutzungsklasse NKL | E18: 1 | M18: =IF(M21>M17,0,M21) -> 0
B19: Lasteinwirkungsdauer | E19: mittel | J19: Modifikationsbeiwert | M19: kmod = | N19: =INDEX(Gültigkeit!I3:M5,Gültigkeit!H4,Gültigkeit!H3) -> 0.80
B20: Linienlasten aus darüberliegenden Geschossen | C20: ständig | E20: gk1 = | F20: 0.0 | G20: kN/m
C21: Nutz/Verkehr | E21: pk1 = | F21: 0.0 | G21: kN/m | L21: qd1 = 1,35 x gk1 + 1,5 x pk1 = | M21: =1.35*F20+1.5*F21 -> 0.0 | N21: kN/m
B22: Linienlasten aus Decken | C22: ständig | E22: gk2 = | F22: 0.0 | G22: kN/m
C23: Nutz/Verkehr | E23: pk2 = | F23: 0.0 | G23: kN/m | L23: qd2 = 1,35 x gk2 + 1,5 x pk2 = | M23: =1.35*F22+1.5*F23 -> 0.0 | N23: kN/m
B24: Flächenlast aus Wind | E24: w = | F24: 0.0 | G24: kN/m² | L24: wd = 1,5 x wk = | M24: =1.5*F24 -> 0.0 | N24: kN/m²
B25: horizontale Kopflast | E25: Pk = | F25: 0.0 | G25: kN/lfm (Wand) | L25: Pd = 1,5 x Pk = | M25: =1.5*F25 -> 0.0 | N25: kN/lfm
I26: =IF((M21+M23)>'Berechnung Wand'!F41*1000,"Achtung: Krititsche Knicklast überschritten!","") -> 
B27: Konstruktive Ausmitten
B28: Ausmitte aus oberen Geschossen | E28: e1 = | F28: 0 | G28: [mm] | J28: Achtung: | K28: Eingabe der Ausmitte / Last mit
B29: Ausmitte aus Decken | E29: e2 = | F29: 0 | G29: [mm] | K29: entsprechendem Vorzeichen !!
K30: (vgl. nebenstehende Grafik, e " ±)
B32: Angaben zum Verbindungsmittel | L32: Schrauben zur Verstärkung der Tragfähigkeit
B33: Nageldurchmesser dn | F33: 2.5 | G33: mm | L33: Anordnung von zusätzlicher Verschraubung | Q33: nein
B34: Randabstand der Nägel | F34: 30.0 | G34: mm | L34: Schraubendurchmesser d = | Q34: 8 | R34: [mm]
B35: (In der Berechnung wird der Randabstand zu 30mm angesetzt) | L35: Länge der Schraube l > | Q35: =+D11 -> 299 | R35: [mm]
B36: Anzahl der Nägel je Kreuzungspunkt | F36: 2 | L36: Anzahl Schrauben je qm | Q36: 20 | R36: [Stück]
B37: Charakt. Tragfähigkeit rechtwinkelig zu Stabachse | F37: 400.0 | G37: [N] | L37: Verschiebungsmodul Kser: | Q37: =POWER(D49,1.5)*Q34/23 -> 2994 | R37: [N/mm]
B38: Verschiebungsmodul für Gebrauchstauglichkeit Kser: | F38: 300.0 | G38: [N/mm] | L38: Verschiebungsmodul Ku,mean: | Q38: =2/3*Q37 -> 1996 | R38: [N/mm]
B39: Verschiebungsmodul für Tragfähigkeit Ku,mean: | F39: 300.0 | G39: [N/mm]
B42: Materialkennwerte
B43: =CONCATENATE("charakteristische Festigkeits- und Steifigkeitswerte für NH ",L11) -> charakteristische Festigkeits- und Steifigkeitswerte für NH C24
B44: Biegung | C44: fm,k | D44: =IF($L$11="C16",Gültigkeit!C16,Gültigkeit!C27) -> 24.0 | E44: [MN/m²] | K44: Elastizitätsmodul parallel | O44: E0,mean | Q44: =IF($L$11="C16",Gültigkeit!P16,Gültigkeit!P27) -> 11000.0 | R44: [MN/m²]
B45: Zug parallel | C45: ft,0,k | D45: =IF($L$11="C16",Gültigkeit!C17,Gültigkeit!C28) -> 14.0 | E45: [MN/m²] | K45: Elastizitätsmodul 5% Quantil | O45: E0,05 | Q45: =IF($L$11="C16",Gültigkeit!P17,Gültigkeit!P28) -> 7400.0 | R45: [MN/m²]
B46: Druck parallel | C46: fc,0,k | D46: =IF($L$11="C16",Gültigkeit!C18,Gültigkeit!C29) -> 21.0 | E46: [MN/m²] | K46: Schubmodul | O46: Gmean | Q46: =IF($L$11="C16",Gültigkeit!P18,Gültigkeit!P29) -> 690.0 | R46: [MN/m²]
B47: Schub und Torsion kcr ∙ | C47: fv,k | D47: =IF($L$11="C16",Gültigkeit!C19,Gültigkeit!C30) -> 2.0 | E47: [MN/m²] | K47: Schubmodul 5% Quantil | O47: G05 = 2/3 x Gmean | Q47: =IF($L$11="C16",Gültigkeit!P19,Gültigkeit!P30) -> 460.0 | R47: [MN/m²]
B48: Rohdichte | C48: rk | D48: =IF($L$11="C16",Gültigkeit!C21,Gültigkeit!C32) -> 350.0 | E48: [kg/m³] | K48: Rollschubmodul | O48: GR,mean = 0,10 x Gmean | Q48: =IF($L$11="C16",Gültigkeit!P20,Gültigkeit!P31) -> 69.0 | R48: [MN/m²]
B49: Rohdichte | C49: rm | D49: =IF($L$11="C16",Gültigkeit!C22,Gültigkeit!C33) -> 420.0 | E49: [kg/m³] | O49: GR,05 = 2/3 x GR,mean | Q49: =IF($L$11="C16",Gültigkeit!P21,Gültigkeit!P32) -> 46.0 | R49: [MN/m²]

Sheet Berechnung Wand
A1: Wand unter Biegung und Druck (Plattenbeanspruchung) für 1m Wandstreifen)
A3: Nachweise im Grenzzustandzustand der Tragsicherheit (ULS):
A5: Fläche A | B5: Biege-, Drill- und Dehnsteifigkeiten der einzelnen Schichten (Plattentragwirkung)
A7: Biegesteifigkeit EIA | E7: =+Eingabe!Q44*(Eingabe!L9+1)/2*(Eingabe!L10*10^-3)^3/12 -> 0.078072 | F7: [MNm2/m]
A9: Fläche B | B9: Steineranteile und Schubfestigkeiten mit Berücksichtigung der Nachgiebigkeit der
B10: Verbindungsmittel (Plattentragwirkung)
A12: Steineranteile EIB | E12: =SteinerEIB(Eingabe!L10,Eingabe!Q44,Eingabe!D11) -> 14.989744 | F12: [MNm2/m]
A15: Anzahl der Nägel je Kreuzungspunkt: | D15: =Eingabe!F36 -> 2 | E15: Nä/Krpkt.
F18: =(1/((Eingabe!L9-1)*(Eingabe!L10*10^-3))^2)*((Eingabe!L9-1)/(Eingabe!F36*Eingabe!F39*IF(D15=2,1.5,IF(D15=4,1.25,1))*10^-3/(Eingabe!F15*Eingabe!F14*10^-6)+IF(Eingabe!Q33="ja",Eingabe!Q36,0)*Eingabe!Q38*10^-3)) -> 6.371
A24: Schubsteifigkeit S | E24: =1/F18 -> 0.156956 | F24: [MN]
A27: effektives EIB | E27: =E12*(1/(1+((E12*(PI()^2))/(E24*((Eingabe!D10*10^-3)^2))))) -> 0.250200 | F27: [MNm2/m]
A29: effektives EI = EIA +efEIB | E29: =E7+E27 -> 0.328272 | F29: [MNm2/m]
A31: Stabilitätsnachweis nach Theorie II.Ordnung
A33: Abminderung der Steifigkeitskennwerte | F33: =1/1.3 -> 0.769231
A35: Biegesteifigkeit EIA | F35: =E7*F33 -> 0.060055 | G35: [MNm2/m]
A36: EIB | F36: =E12*F33 -> 11.530572 | G36: [MNm2/m]
A37: Schubsteifigkeit S | F37: =F33*E24 -> 0.120735 | G37: [MN/m]
A38: effektives EIB | F38: =F33*E27 -> 0.192462 | G38: [MNm2/m]
A39: effektives EI | F39: =F33*E29 -> 0.252517 | G39: [MNm2/m]
A41: Knicklast | F41: =(PI()^2)/(Eingabe!D10*10^-3)^2*F39 -> 0.155765 | G41: [MN/m]
A43: Schnittgrößen
A45: Ausmitte+Vorverformung | F45: =(Eingabe!F28+0.0025*Eingabe!D10)/1000 -> 0.010000 | G45: [m]
F47: =(Eingabe!F29+0.0025*Eingabe!D10)/1000 -> 0.010000 | G47: [m]
A50: Moment | F50: =((Eingabe!M24*(Eingabe!D10/1000)^2/8)+Eingabe!M21*'Berechnung Wand'!F45+Eingabe!M23*'Berechnung Wand'!F47)*10^-3 -> 0.000000 | G50: [MNm/m]
A53: Moment | F53: =F50/(1-((Eingabe!M21+Eingabe!M23)*10^-3/'Berechnung Wand'!F41)) -> 0.000000 | G53: [MNm]
A56: Moment auf Träger A | F56: =F53*F35/F39 -> 0.000000 | G56: [MNm]
A58: Moment auf Träger B | F58: =F53*F38/F39 -> 0.000000 | G58: [MNm]
A61: Querkraft | F61: =Eingabe!M24*10^-3*Eingabe!D10/2000+Eingabe!M21*10^-3*PI()/(Eingabe!D10*10^-3)*F45+Eingabe!M23*10^-3*PI()/(Eingabe!D10*10^-3)*F47 -> 0.000000 | G61: [MN]
A64: Querkraft | F64: =F61/(1-((Eingabe!M21+Eingabe!M23)*10^-3/'Berechnung Wand'!F41)) -> 0.000000 | G64: [MN]
A67: Querkraft auf Träger A | F67: =F64*F35/F39 -> 0.000000 | G67: [MN]
A69: Querkraft auf Träger B | F69: =F64*F38/F39 -> 0.000000 | G69: [MN]
A71: Schnittgrößen/Brettlage
A73: Mi | F73: =+F56/((Eingabe!L9+1)/2) -> 0.000000 | G73: [MNm]
A75: Ni | F75: =(Eingabe!M21+Eingabe!M23)*10^-3/((Eingabe!L9+1)/2) -> 0.000000 | G75: [MN]
A77: Naußen | F77: =+F58/E12*Eingabe!Q44*Eingabe!L10*10^-3*(Eingabe!D11/2-Eingabe!L10/2)*10^-3 -> 0.000000 | G77: [MN]
A79: Spannungen
F81: =+(F75+F77)/(Eingabe!L10*10^-3) -> 0.000000 | G81: [MN/m²]
F83: =(-F77+F75)/(Eingabe!L10*10^-3) -> 0.000000 | G83: [MN/m²]
F85: =+F73/((Eingabe!L10*10^-3)^2/6) -> 0.000000 | G85: [MN/m²]
F87: =1.5*F67/(Eingabe!L10*10^-3*(Eingabe!L9+1)/2) -> 0.000000 | G87: [MN/m²]
F89: =Tauinnen(F69,E12,Eingabe!Q44,Eingabe!L10,Eingabe!D11) -> 0.000000 | G89: [MN/m²]
A92: Biege-, Normal- und Schubspannungsnachweise am Bauteil
C95: =(F81/(Eingabe!D46*Eingabe!N19/1.3))^2 -> 0 | D95: + | E95: =ABS(F85/(Eingabe!D44*Eingabe!N19/1.3)) -> 0 | F95: = | G95: =C95+E95 -> 0
D97: Ausnutzungsgrad | E97: =G95*100 -> 0.0 | F97: % | G97: =IF(E97<=100,"Nachweis eingehalten","Nachweis nicht eingehalten!") -> Nachweis eingehalten
C99: =ABS(F83/(Eingabe!D45*Eingabe!N19/1.3)) -> 0 | D99: + | E99: =E95 -> 0 | F99: = | G99: =C99+E99 -> 0
D101: Ausnutzungsgrad | E101: =G99*100 -> 0.0 | F101: % | G101: =IF(E101<=100,"Nachweis eingehalten","Nachweis nicht eingehalten!") -> Nachweis eingehalten
F103: = | G103: =(F87+F89)/(Eingabe!D47*Eingabe!N19/1.3) -> 0
D105: Ausnutzungsgrad | E105: =G103*100 -> 0.0 | F105: % | G105: =IF(E105<=100,"Nachweis eingehalten","Nachweis nicht eingehalten!") -> Nachweis eingehalten
A107: Verbindungsmittelnachweise
D109: = | E109: =+(F89*Eingabe!F14*10^-3*Eingabe!F15*10^-3/Eingabe!F36)*IF(D15=2,2/3,IF(D15=4,4/5,1)) -> 0.000 | F109: [MN]
E110: =+E109*10^6 -> 0.0 | F110: [N]
D111: = | E111: =+E109/(Eingabe!N19*Eingabe!F37*10^-6/1.1) -> 0.000
A113: Ausnutzungsgrad | E113: =E111*100 -> 0.0 | F113: % | G113: =IF(E113<=100,"Nachweis eingehalten","Nachweis nicht eingehalten!") -> Nachweis eingehalten
A115: Nachweise im Grenzzustand der Gebrauchstauglichkeit (SLS):
E117: =5*Eingabe!F24*(Eingabe!D10*10^-3)^4/(384*E29) -> 0.00 | F117: [mm]
E120: =(E117+Eingabe!D10*0.0025)/(1-((Eingabe!M21+Eingabe!M23)*10^-3/F41))-Eingabe!D10*0.0025 -> 0.00 | F120: [mm]
E124: =Eingabe!D10/300 -> 13.33 | F124: [mm]
D127: Ausnutzungsgrad | E127: =E120/E124*100 -> 0.0 | F127: % | G127: =IF(E127<=100,"Nachweis eingehalten","Nachweis nicht eingehalten!") -> Nachweis eingehalten

Sheet Berechnung Kopflast
A1: Kopflast (Scheibenbeanspruchung)
A3: Fläche C | B3: Dehn- und Schubsteifigkeiten (Scheibentragwirkung)
A5: Drehfedersteifigkeit je Kreuzungspunkt | F5: =Eingabe!F36*((Eingabe!F14/2*10^-3-(30*10^-3))^2+(Eingabe!F15/2*10^-3-(30*10^-3))^2)*Eingabe!F38*10^-3 -> 0.006960 | G5: [MNm]
A7: Summe Drehfedersteifigkeiten | F7: =(Eingabe!L8-1)*F5 -> 0.083520 | G7: [MNm]
F9: =(Eingabe!F14*Eingabe!F15*10^-6/F7)+(Eingabe!F14*10^-3/(Eingabe!Q46*Eingabe!L10*10^-3*Eingabe!F14*10^-3*(Eingabe!L8+1)/2))+(Eingabe!F15*10^-3/(Eingabe!Q46*Eingabe!L10*10^-3*Eingabe!F15*10^-3*(Eingabe!L8+1)/2)) -> 0.453827 | G9: [m/MN]
A13: Schubsteifigkeit Dxy bei gleich dicken Brettlagen | F13: =1/F9 -> 2.203482 | G13: [MN/m]
A15: Nachweise im Grenzzustandzustand der Tragsicherheit (ULS):
A17: Schubsteifigkeit S = Dxy* l | F17: =F13*Eingabe!D9*10^-3 -> 13.220892 | G17: [MN]
A19: Schnittgrößen
F21: =Eingabe!M25*10^-3*Eingabe!D10/Eingabe!D9 -> 0.000000 | G21: [MN]
F23: =Eingabe!M25*10^-3 -> 0.000000 | G23: [MN]
A25: Spannungen
F27: =F21/(Eingabe!L10*10^-3*Eingabe!F14*10^-3*(Eingabe!L9+1)/2) -> 0.000000 | G27: [MN/m²]
A29: Biege-, Normal- und Schubspannungsnachweise am Bauteil
D32: = | E32: =+F27/(Eingabe!D45*Eingabe!N19/1.3) -> 0.000
A34: Ausnutzungsgrad | E34: =E32*100 -> 0.0 | F34: % | G34: =IF(E34<101,"Nachweis eingehalten","Nachweis nicht eingehalten!") -> Nachweis eingehalten
A36: Verbindungsmittelnachweise
E38: =+Eingabe!M25*10^-3 -> 0.0000 | F38: [MN/m]
E41: =E38*Eingabe!F14*Eingabe!F15*10^-6*F5/F7 -> 0.0000000 | F41: [MNm]
E44: =E41/(SQRT((((Eingabe!F14-2*Eingabe!H34)*10^-3/2)^2)+(((Eingabe!F15-2*Eingabe!H34)*10^-3/2)^2))*Eingabe!F36) -> 0.000000 | F44: [MN]
E45: =E44*10^6 -> 0 | F45: [N]
A47: vertikaler Anteil für Kombination aus Wand und Kopflast
E49: =E45*(Eingabe!F14/2-30)/SQRT((Eingabe!F14/2-30)^2+(Eingabe!F15/2-30)^2) -> 0 | F49: [N]
A52: horizontaler Anteil für Kombination aus Wand und Kopflast
E54: =E45*(Eingabe!F15/2-30)/SQRT((Eingabe!F14/2-30)^2+(Eingabe!F15/2-30)^2) -> 0 | F54: [n]
A57: Zulässige Scherkraft des VM | E57: =Eingabe!F37*Eingabe!N19/1.1 -> 291 | F57: [N] | G57: =IF(E59<101,"Nachweis eingehalten","Nachweis nicht eingehalten!") -> Nachweis eingehalten
A59: Ausnutzungsgrad | E59: =+E45*100/E57 -> 0.0 | F59: %
A61: Anzuschliessende Zugkraft | E61: =F21*10^3 -> 0.000 | F61: [kN]
A64: Nachweise im Grenzzustand der Gebrauchstauglichkeit (SLS):
A67: Schubwinkel | E67: =Eingabe!F25*10^-3/F13 -> 0.000E+00 | F67: [-]
A70: Verformung | E70: =E67*Eingabe!D10 -> 0.000 | F70: [mm]
A72: zul Verformung | E72: =Eingabe!D10/500 -> 8.000 | F72: [mm] | G72: =IF(E74<101,"Nachweis eingehalten","Nachweis nicht eingehalten!") -> Nachweis eingehalten
A74: Ausnutzungsgrad | E74: =+E70*100/E72 -> 0.0 | F74: %

Sheet Nachweisführung
B2: Nachweisführung
B4: Nachweise im Grenzzustandzustand der Tragsicherheit (ULS):
B6: Biege-, Normal- und Schubspannungsnachweise aus Plattenbeanspruchung und vertikaler Scheibenbeanspruchung
F8: =+'Berechnung Wand'!C95 -> 0.00 | G8: + | H8: =+'Berechnung Wand'!E95 -> 0.00 | I8: = | J8: =+F8+H8 -> 0.00 | M8: Ausnutzungsgrad | N8: =+J8 -> 0% | O8: =IF(J8>1,"Achtung!"," ") ->  | P8: =IF(J8<=1,"O.K."," ") -> O.K.
F11: =+'Berechnung Wand'!C99 -> 0.00 | G11: + | H11: =+'Berechnung Wand'!E99 -> 0.00 | I11: = | J11: =+F11+H11 -> 0.00 | M11: Ausnutzungsgrad | N11: =+J11 -> 0% | O11: =IF(J11>1,"Achtung!"," ") ->  | P11: =IF(J11<=1,"O.K."," ") -> O.K.
J14: =+'Berechnung Wand'!G103 -> 0.00 | M14: Ausnutzungsgrad | N14: =+J14 -> 0% | O14: =IF(J14>1,"Achtung!"," ") ->  | P14: =IF(J14<=1,"O.K."," ") -> O.K.
B17: Überlagerung der Spannungen aus Plattenbeanspruchung, vertikaler und horizontaler (Kopflast) Scheibenbeanspruchung
I19: = | J19: =+J8+('Berechnung Kopflast'!E32)^2 -> 0.00 | M19: Ausnutzungsgrad | N19: =+J19 -> 0% | O19: =IF(J19>1,"Achtung!"," ") ->  | P19: =IF(J19<=1,"O.K."," ") -> O.K.
B22: Anteil aus Platte | C22: + | D22: Kopflast
B24: Nachweis der Verbindungsmittel für Kombination aus Plattenbeanspruchung, vertikaler und horizontaler Scheibenbeanspruchung
F27: =SQRT(('Berechnung Wand'!$E$110+'Berechnung Kopflast'!E49)^2+'Berechnung Kopflast'!E54^2) -> 0 | G27: N | H27: =IF((F27/K27)>1,">","<") -> < | J27: = | K27: =+'Berechnung Kopflast'!E57 -> 291 | L27: N | M27: Ausnutzungsgrad | N27: =F27/K27 -> 0% | O27: =IF((F27/K27)>1,"Achtung!"," ") ->  | P27: =IF((F27/K27)<=1,"O.K."," ") -> O.K.
B31: Nachweise im Grenzzustandzustand der Gebrauchstauglichkeit (SLS):
B33: Verformungsnachweis unter Plattenbeanspruchung aus Windbeanspruchung*
E35: = | F35: =+'Berechnung Wand'!$E$120 -> 0.0 | G35: mm | H35: =IF((F35/K35)>1,">","<") -> < | J35: = | K35: =+'Berechnung Wand'!$E$124 -> 13.3 | L35: mm | M35: Ausnutzungsgrad | N35: =F35/K35 -> 0% | O35: =IF((F35/K35)>1,"Achtung!"," ") ->  | P35: =IF((F35/K35)<=1,"O.K."," ") -> O.K.
B38: * Verformungsanteile, die ggfs. aus konstruktiven Ausmitten resultieren, sind zusätzlich zu berücksichtigen.
B40: Verformungsnachweis für horizontale Scheibenbeanspruchung (Kopflast)
B42: = | C42: =+'Berechnung Kopflast'!$E$70 -> 0.0 | E42: mm | F42: =IF((D42/K42)>1,">","<") -> < | J42: = | K42: =+'Berechnung Kopflast'!$E$72 -> 8.0 | L42: mm | M42: Ausnutzungsgrad | N42: =C42/K42 -> 0% | O42: =IF((C42/K42)>1,"Achtung!"," ") ->  | P42: =IF((C42/K42)<=1,"O.K."," ") -> O.K.

Sheet Ausgabe
A1: Berechnungsblatt zum baustatischen Nachweis von MHM-Bauteilen | Q1: Massiv-Holz-Mauer Entwicklungs GmbH Auf der Geigerhalde 41 D-87459 Pfronten-Weißbach Tel.: ++49 (0) 8332 92 33 19 Fax.: ++49 (0) 8332 92 33 11 info@massivholzmauer.de
A2: Berechnung nach DIN EN 1995-1-1/NA:2010-12 'Flächen aus nachgiebig miteinander verbundenen Schichten'
A4: Bauvorhaben: | B4: =+Eingabe!C4 -> 0 | J4: Position: | L4: =+Eingabe!M4 -> 0
A5: Datum: | B5: =+Eingabe!C5 -> 2014-04-30
A8: Angaben zum Bauteil
A9: Orientierung äußerer Brettlagen | C9: =+Eingabe!D8 -> vertikal | L9: Anzahl der Brettlagen | M9: n = | N9: =+Eingabe!L8 -> 13
A10: Bauteil-/Wandlänge | B10: l = | C10: =+Eingabe!D9 -> 6000 | D10: mm | L10: Anzahl Brettlagen für die Nachweise | M10: nstat = | N10: =+Eingabe!L9 -> 13
A11: Bauteilhöhe | B11: h = | C11: =+Eingabe!D10 -> 4000 | D11: mm | J11: Einzelbrettbreite | M11: de = | N11: =+Eingabe!L10 -> 23 | O11: mm
A12: Bauteildicke für die Nachweise | B12: dstat = | C12: =+Eingabe!D11 -> 299 | D12: mm
A13: Bauteildicke | B13: d = | C13: =+Eingabe!D12 -> 299 | D13: mm
H14: Konstruktive Ausmitten
A15: Brettbreite bx (vertikale Brettlagen (im fertigen Zustand)): | E15: =+Eingabe!F14 -> 260 | F15: mm | H15: Ausmitte aus oberen Geschossen | M15: e1= | N15: =Eingabe!F28 -> 0 | O15: [mm] | P15: Eingabe der Ausmitte / Last mit
A16: Brettbreite by (horizontale Brettlagen (im fertigen Zustand)): | E16: =+Eingabe!F15 -> 140 | F16: mm | H16: Ausmitte aus Decken | M16: e2= | N16: =Eingabe!F29 -> 0 | O16: [mm] | P16: entsprechendem Vorzeichen !!
P17: (vgl. Grafik, e " ±)
A18: Angaben zum Verbindungsmittel
A19: Nageldurchmesser dn | F19: =+Eingabe!F33 -> 2.5 | G19: [mm] | K19: System:
A20: Randabstand der Nägel | F20: 30 | G20: [mm]
A21: Anzahl der Nägel je Kreuzungspunkt | F21: =+Eingabe!F36 -> 2 | G21: [ - ]
A22: Charakt. Tragfähigkeit rechtwinkelig zu Stabachse | F22: =+Eingabe!F37 -> 400.0 | G22: [N]
A23: Verschiebungsmodul für Gebrauchtauglichkeit Kser: | F23: =+Eingabe!F38 -> 300.0 | G23: [N/mm]
A25: =IF(Eingabe!Q33="nein","Keine zusätzliche Verschraubung","Zusätzliche Verschraubung") -> Keine zusätzliche Verschraubung
A26: Schraubendurchmesser d | E26: =IF(Eingabe!Q33="ja",Eingabe!Q34," --- ") -> --- | F26: [mm]
A27: Länge der Schraube l ≥ | E27: =IF(Eingabe!Q33="ja",Eingabe!Q35," --- ") -> --- | F27: [mm]
A28: Anzahl Schrauben je qm | E28: =IF(Eingabe!Q33="ja",Eingabe!Q36," --- ") -> --- | F28: [Stück]
A29: Verschiebungsmodul Kser: | E29: =+Eingabe!Q37 -> 2993.9 | F29: [N/mm]
A30: Verschiebungsmodul Ku,mean: | E30: =+Eingabe!Q38 -> 1995.9 | F30: [N/mm]
A33: Angaben zu Einwirkungen
A34: Bauteilnutzungsklasse NKL | D34: =+Eingabe!E18 -> 1
A35: Lasteinwirkungsdauer | D35: =+Eingabe!E19 -> mittel | J35: Modifikationsbeiwert | M35: kmod = | N35: =+Eingabe!N19 -> 0.8
A36: Linienlasten aus | B36: ständig | D36: gk1 = | E36: =+Eingabe!F20 -> 0.0 | F36: kN/m | M36: qd1 = 1,35 x gk + 1,5 x pk = | N36: =+Eingabe!M21 -> 0.0 | O36: kN/m
A37: darüberliegenden Geschossen | B37: Nutz/Verkehr | D37: pk1 = | E37: =+Eingabe!F21 -> 0.0 | F37: kN/m
A38: Linielasten aus | B38: ständig | D38: gk2 = | E38: =Eingabe!F22 -> 0.0 | F38: kN/m | M38: qd2 = 1,35 x gk + 1,5 x pk = | N38: =+Eingabe!M23 -> 0.0 | O38: kN/m
A39: Decken | B39: Nutz/Verkehr | D39: pk2 = | E39: =Eingabe!F23 -> 0.0 | F39: kN/m
A40: Flächenlast aus Wind | D40: w = | E40: =+Eingabe!F24 -> 0.0 | F40: kN/m² | M40: wd = 1,5 x wk = | N40: =1.5*E40 -> 0.0 | O40: kN/m²
A41: horizontale Kopflast | D41: Pk = | E41: =+Eingabe!F25 -> 0.0 | F41: kN/lfm (Wand) | M41: Pd = 1,5 x Pk = | N41: =1.5*E41 -> 0.0 | O41: kN/lfm
A44: Materialkennwerte nach DIN EN 338:2010-02
A45: =CONCATENATE("charakteristische Festigkeits- und Steifigkeitswerte für NH ",Eingabe!L11) -> charakteristische Festigkeits- und Steifigkeitswerte für NH C24
A47: Biegung | B47: fm,k | C47: =Eingabe!D44 -> 24.0 | D47: [MN/m²] | J47: Elastizitätsmodul parallel | N47: E0,mean | Q47: =Eingabe!Q44 -> 11000 | R47: [MN/m²]
A48: Zug parallel | B48: ft,0,k | C48: =Eingabe!D45 -> 14.0 | D48: [MN/m²] | J48: Elastizitätsmodul 5% Quantil | N48: E0,05 | Q48: =Eingabe!Q45 -> 7400 | R48: [MN/m²]
A49: Druck parallel | B49: fc,0,k | C49: =Eingabe!D46 -> 21.0 | D49: [MN/m²] | J49: Schubmodul | N49: Gmean | Q49: =Eingabe!Q46 -> 690 | R49: [MN/m²]
A50: Schub und Torsion | B50: fv,k | C50: =Eingabe!D47 -> 2.0 | D50: [MN/m²] incl. kcr | J50: Schubmodul 5% Quantil | N50: G05 = 2/3 x Gmean | Q50: =Eingabe!Q47 -> 460 | R50: [MN/m²]
A51: Rohdichte | B51: rk | C51: =Eingabe!D48 -> 350.0 | D51: [kg/m³] | J51: Rollschubmodul | N51: GR,mean = 0,10 x Gmean | Q51: =Eingabe!Q48 -> 69 | R51: [MN/m²]
A52: Rohdichte | B52: rm | C52: =Eingabe!D49 -> 420.0 | D52: [kg/m³] | N52: GR,05 = 2/3 x GR,mean | Q52: =Eingabe!Q49 -> 46 | R52: [MN/m²]
A55: Bauteilsteifigkeiten für die Berechung nach Theorie I.Ordnung | J55: Bauteilsteifigkeiten für die Berechnung nach Theorie II.Ordnung
A56: Biegesteifigkeiten | B56: effektiv EI | D56: EIef = | E56: =+'Berechnung Wand'!E29 -> 0.328 | F56: MN/m2 | J56: Biegesteifigkeiten | M56: effektiv EI | O56: EIef = | P56: =+'Berechnung Wand'!F39 -> 0.253 | Q56: MN/m2
B57: Fläche A | D57: EIA = | E57: =+'Berechnung Wand'!E7 -> 0.078 | F57: MN/m2 | M57: Fläche A | O57: EIA = | P57: =+'Berechnung Wand'!F35 -> 0.060 | Q57: MN/m2
B58: Fläche B | D58: EIB = | E58: =+'Berechnung Wand'!E12 -> 14.990 | F58: MN/m2 | M58: Fläche B | O58: EIB = | P58: =+'Berechnung Wand'!F36 -> 11.531 | Q58: MN/m2
A59: Schubsteifigkeit | D59: S = | E59: =+'Berechnung Wand'!E24 -> 0.157 | F59: MN | J59: Schubsteifigkeit | O59: S = | P59: =+'Berechnung Wand'!F37 -> 0.121 | Q59: MN
A60: Schubsteifigkeit | B60: Fläche C | D60: Dxy = | E60: =+'Berechnung Kopflast'!$F$13 -> 2.203481973 | F60: MN/m | J60: Ausmitte+Vorverformung | O60: = | P60: =Eingabe!D10*0.0025/1000 -> 0.01 | Q60: m
A62: Festigkeiten | H62: Aufteilung der Schnittgrößen
A63: Biegung | C63: fm,d = | D63: =+Eingabe!$N$19*Eingabe!D44/1.3 -> 14.8 | E63: MN/m² | H63: Momente | N63: = | O63: =+'Berechnung Wand'!$F$56 -> 0.0000 | P63: MNm
A64: Zug parallel | C64: ft,0,d = | D64: =+Eingabe!$N$19*Eingabe!D45/1.3 -> 8.6 | E64: MN/m²
A65: Druck parallel | C65: fc,0,d = | D65: =+Eingabe!$N$19*Eingabe!D46/1.3 -> 12.9 | E65: MN/m² | P65: = | Q65: =+'Berechnung Wand'!$F$58 -> 0 | R65: MNm
A66: Schub und Torsion | C66: fv,d = | D66: =+Eingabe!$N$19*Eingabe!D47/1.3 -> 1.2 | E66: MN/m²
H67: Querkräfte | N67: = | O67: =+'Berechnung Wand'!$F$67 -> 0 | P67: MN
P69: = | Q69: =+'Berechnung Wand'!$F$69 -> 0 | R69: MN
A72: Nachwiese im Grenzzustand der Tragsicherheit (ULS): Plattenbeanspruchung und vertikale Scheibenbeanspruchung
A73: Spannungsnachweise
D75: =+Nachweisführung!F8 -> 0.00 | E75: + | F75: =+'Berechnung Wand'!E95 -> 0.00 | G75: = | H75: =+Nachweisführung!J8 -> 0.00 | I75: =IF(H75<1,"<",IF(H75=1,"=",">")) -> < | J75: 1.0 | K75: =IF(H75<=1,"O.K.","Achtung !!! ") -> O.K.
I77: Ausnutzungsgrad | K77: =Nachweisführung!J8 -> 0%
D79: =+'Berechnung Wand'!C99 -> 0.00 | E79: + | F79: =+'Berechnung Wand'!E99 -> 0.00 | G79: = | H79: =+Nachweisführung!J11 -> 0.00 | I79: =IF(H79<1,"<",IF(H79=1,"=",">")) -> < | J79: 1.0 | K79: =IF(H79<=1,"O.K.","Achtung !!! ") -> O.K.
I81: Ausnutzungsgrad | K81: =Nachweisführung!J11 -> 0%
D83: =+Nachweisführung!J14 -> 0.00 | E83: =IF(D83<1,"<",IF(D83=1,"=",">")) -> < | F83: 1.0 | K83: =IF(D83<=1,"O.K.","Achtung !!! ") -> O.K.
I85: Ausnutzungsgrad | K85: =Nachweisführung!J14 -> 0%
A87: Verbindungsmittelnachweis
H89: =+'Berechnung Wand'!$E$109*10^6 -> 0.0 | I89: N
A93: =+'Berechnung Wand'!$E$109*10^6 -> 0.0 | B93: = | D93: =+A93/A94 -> 0.00 | E93: =IF(D93<1,"<",IF(D93=1,"=",">")) -> < | F93: 1.0 | K93: =IF(D93<=1,"O.K.","Achtung !!! ") -> O.K.
A94: =+Eingabe!F37/1.1*Eingabe!N19 -> 290.9
I95: Ausnutzungsgrad | K95: =A93/A94 -> 0%
A97: Berechnungsblatt zum baustatischen Nachweis von MHM-Bauteilen | Q97: Massiv-Holz-Mauer Entwicklungs GmbH Auf der Geigerhalde 41 D-87459 Pfronten-Weißbach Tel.: ++49 (0) 8332 92 33 19 Fax.: ++49 (0) 8332 92 33 11 info@massivholzmauer.de
A98: Berechnung nach DIN EN 1995-1-1/NA:2010-12 'Flächen aus nachgiebig miteinander verbundenen Schichten'
A100: Bauvorhaben: | B100: =+Eingabe!C4 -> 0 | J100: Position: | L100: =+Eingabe!M4 -> 0
A101: Datum: | B101: =+Eingabe!C5 -> 2014-04-30
A105: Nachweise im Grenzzustand der Tragsicherheit (ULS): Plattenbeanspruchung, vertikale und horizontale (Kopflast) Scheibenbeanspruchung
A106: Spannungsnachweis
E110: =+D75 -> 0.00 | F110: + | G110: =+F75 -> 0.00 | H110: + | I110: =+'Berechnung Kopflast'!E32^2 -> 0.00 | J110: = | K110: =+I110+G110+E110 -> 0.00 | L110: =IF(K110<1,"<",IF(K110=1,"=",">")) -> < | M110: 1.0 | N110: =IF(K110<=1,"O.K.","Achtung !!! ") -> O.K.
A112: Anteil aus Plattenbeanspruchung und vertikaler Scheibenbeanspruchung | C112: Anteil aus Kopflast | K112: Ausnutzungsgrad | N112: =E110+G110+I110 -> 0%
A114: Verbindungsmittelnachweis
D116: =+Nachweisführung!F27 -> 0.0 | F116: =IF(D116<H116,"<",IF(D116=H116,"=",">")) -> < | H116: =+Nachweisführung!K27 -> 290.9 | J116: N | N116: =IF(D116<=H116,"O.K.","Achtung !!! ") -> O.K.
K118: Ausnutzungsgrad | N118: =D116/H116 -> 0%
A121: Nachweise im Grenzzustand der Gebrauchstauglichkeit (SLS)
A123: Verformung unter Plattenbeanspruchung aus Windbeanspruchung *
E125: = | F125: =+Nachweisführung!F35 -> 0.0 | H125: mm | I125: =IF(F125<=L125,"<",">") -> < | L125: =+Nachweisführung!K35 -> 13.3 | M125: mm | N125: =IF(F125<=L125,"O.K.","Achtung !!! ") -> O.K.
K127: Ausnutzungsgrad | N127: =F125/L125 -> 0%
A129: * Verformungsanteile, die ggfs. aus konstruktiven Ausmitten resultieren, sind zusätzlich zu berücksichtigen.
A131: Verformung unter horizontaler Scheibenbeanspruchung (Kopflast)
B133: = | C133: =+'Berechnung Kopflast'!E70 -> 0.0 | D133: mm | E133: =IF(C133<=J133,"<",">") -> < | I133: = | J133: =+'Berechnung Kopflast'!$E$72 -> 8.0 | K133: mm | N133: =IF(C133<=J133,"O.K.","Achtung !!! ") -> O.K.
K135: Ausnutzungsgrad | N135: =C133/J133 -> 0%

Sheet Gültigkeit (hidden)
A1: Lagenanzahl | B1: 5 | C1: 7 | D1: 9 | E1: 11 | F1: 13 | G1: 15
A2: Nägel je Kreuzungspunkt | B2: 2 | C2: 4
A3: Lasteinwirkungsdauer | B3: ständig | C3: lang | D3: mittel | E3: kurz | F3: kurz/sehr kurz | H3: =IF(Eingabe!E19=Gültigkeit!B3,1,IF(Eingabe!E19=Gültigkeit!C3,2,IF(Eingabe!E19=Gültigkeit!D3,3,IF(Eingabe!E19=Gültigkeit!E3,4,IF(Eingabe!E19=Gültigkeit!F3,5,1))))) -> 3 | I3: 0.6 | J3: 0.7 | K3: 0.8 | L3: 0.9 | M3: 1
A4: Nutzungsklasse | B4: 1 | C4: 2 | D4: 3 | H4: =Eingabe!E18 -> 1 | I4: 0.6 | J4: 0.7 | K4: 0.8 | L4: 0.9 | M4: 1
I5: 0.5 | J5: 0.55 | K5: 0.65 | L5: 0.7 | M5: 0.8
A7: Schwerpunktsabstand für n…ungerade
A9: zusätzliche Verschraubung | B9: ja | C9: nein
A10: Orientierung der äußeren Brettlagen | B10: vertikal | C10: horizontal
A13: Materialkennwerte
A14: charakteristische Festigkeits- und Steifigkeitswerte für NH C16
A16: Biegung | B16: fm,k | C16: 16.0 | D16: [MN/m²] | J16: Elastizitätsmodul parallel | N16: E0,mean | P16: 8000 | Q16: [MN/m²]
A17: Zug parallel | B17: ft,0,k | C17: 10.0 | D17: [MN/m²] | J17: Elastizitätsmodul 5% Quantil | N17: E0,05 = 2/3 x E0,mean | P17: 5400 | Q17: [MN/m²]
A18: Druck parallel | B18: fc,0,k | C18: 17.0 | D18: [MN/m²] | J18: Schubmodul | N18: Gmean | P18: 500 | Q18: [MN/m²]
A19: Schub und Torsion | B19: fv,k | C19: 2.0 | D19: [MN/m²] | J19: Schubmodul 5% Quantil | N19: G05 = 2/3 x Gmean | P19: =2*P18/3 -> 333 | Q19: [MN/m²]
A20: Rollschubfestigkeit | B20: fR,k | C20: 1.0 | D20: [MN/m²] | J20: Rollschubmodul | N20: GR,mean = 0,10 x Gmean | P20: =+P18*0.1 -> 50 | Q20: [MN/m²]
A21: Rohdichte | B21: rk | C21: 310.0 | D21: [kg/m³] | N21: GR,05 = 2/3 x GR,mean | P21: =+P20*2/3 -> 33.33333333 | Q21: [MN/m²]
A22: Rohdichte | B22: rm | C22: 370.0 | D22: [kg/m³]
A24: Materialkennwerte
A25: charakteristische Festigkeits- und Steifigkeitswerte für NH C24
A27: Biegung | B27: fm,k | C27: 24.0 | D27: [MN/m²] | J27: Elastizitätsmodul parallel | N27: E0,mean | P27: 11000 | Q27: [MN/m²]
A28: Zug parallel | B28: ft,0,k | C28: 14.0 | D28: [MN/m²] | J28: Elastizitätsmodul 5% Quantil | N28: E0,05 = 2/3 x E0,mean | P28: 7400 | Q28: [MN/m²]
A29: Druck parallel | B29: fc,0,k | C29: 21.0 | D29: [MN/m²] | J29: Schubmodul | N29: Gmean | P29: 690 | Q29: [MN/m²]
A30: Schub und Torsion | B30: fv,k | C30: 2.0 | D30: [MN/m²] | J30: Schubmodul 5% Quantil | N30: G05 = 2/3 x Gmean | P30: =2*P29/3 -> 460 | Q30: [MN/m²]
A31: Rollschubfestigkeit | B31: fR,k | C31: 1.0 | D31: [MN/m²] | J31: Rollschubmodul | N31: GR,mean = 0,10 x Gmean | P31: =+P29*0.1 -> 69 | Q31: [MN/m²]
A32: Rohdichte | B32: rk | C32: 350.0 | D32: [kg/m³] | N32: GR,05 = 2/3 x GR,mean | P32: =+P31*2/3 -> 46 | Q32: [MN/m²]
A33: Rohdichte | B33: rm | C33: 420.0 | D33: [kg/m³]

Sheet Versionsinfo (hidden)
A1: Version | B1: Bemerkungen / Ergänzungen / Änderungen | C1: Datum
A3: 1.0 | B3: Prototyp | C3: 2005-10-14
A4: 1.1 | B4: Register Berechnung Kopflast: Korrektur der Formel in Drehfedersteifigkeit je Kreuzungspunkt | C4: 2005-10-17
B5: Register Ausgabe: geänderter Text: Materialkennwerte nach DIN 1052 Ausgabe Aug. 2004 | C5: 2005-10-17
A6: 1.2 | B6: Berechnung Wand: Abminderung der Steifigkeitswerte auf nur eins durch Gamma M | C6: 2005-10-19
B7: Berechnung Wand: geänderte Formel zur Berechnung der Schubsteifigkeit incl. Verstärkungen mit Schrauben | C7: 2005-10-19
B8: Berechnung Wand: geänderte Einheitsbezeichnung bei Bauteilsteifigkeiten von MNm4/m auf MNm2/m | C8: 2005-10-19
B9: Ausgabe: Erläuterungszeile bei kombinierten Spannungsnachweis | C9: 2005-10-19
B10: Verformungsnachweis: Änderung auf Fd/Pki erhöhte Verformung aus Theorie I.Ordnung | C10: 2005-10-19
A11: 1.3 | B11: Verformungsnachweis: Änderung auf Fd/Pki erhöhte Verformung aus Theorie II.Ordnung abzüglich der Vorverformung | C11: 2005-11-07
A12: 1.4 | B12: Berechnung Wand: Querkraft aus Verformung berücksichtigt | C12: 2005-11-09
A13: 1.5 | B13: Änderung der Haftungsklausel | C13: 2006-06-13
A14: 1.6 | B14: Logo geändert, Sperrung der Eingabefelder korrigiert | C14: 2006-06-26
A15: 1.7 | B15: Formel der Drehfedersteifigkeit korrigiert | C15: 2007-11-20
A16: 1.8 | B16: Änderung der Ausgabe | C16: 2008-01-08
A17: 1.9 | B17: Änderungen der bauaufsichtlichen Zulassung (Randabstand der Nägel, Haftungseinfuss auf Schubsteifigkeit / Nagelbemessung)
A18: 2.0 | B18: Bemerkung zur kritischen Knicklast | C18: 2009-07-10
